[Event "FIDE World Cadets GU12 2022"]
[Site "Batumi"]
[Date "2022.09.21"]
[Round "6.15"]
[White "Sordia, Marta"]
[Black "Alfano, Emilie"]
[Result "1/2-1/2"]
[ECO "C54"]
[WhiteElo "1363"]
[BlackElo "1712"]
[Annotator "NA RC COMBH"]
[PlyCount "104"]
[EventDate "2022.09.16"]
[EventType "swiss"]
[EventCountry "GEO"]
[SourceTitle "playchess.com"]
[Source "ChessBase"]
[SourceQuality "1"]
[TimeControl "5400+30"]

1. e4 {[%emt 0:01:00]} e5 {[%emt 0:01:00]} 2. Nf3 {[%emt 0:00:30]} Nc6 {[%emt 0:00:30]} 3. Bc4 {[%emt 0:00:30]} Bc5 {[%emt 0:00:30]} 4. c3 {[%emt 0:00:30]} Nf6 {[%emt 0:00:30]} 5. d4 {[%emt 0:00:30]} exd4 {[%emt 0:00:30]} 6. e5 {[%emt 0:00:00]} d5 {[%emt 0:00:00]} 7. Bb5 {[%emt 0:00:00]} Ne4 {[%emt 0:00:00]} 8. cxd4 {[%emt 0:00:00]} Bb6 {[%emt 0:00:30]} 9. Nc3 {[%emt 0:00:00]} O-O {[%emt 0:04:30]} 10. h3 {[%emt 0:03:30]} Nxc3 {[%emt 0:20:30]} 11. bxc3 {[%emt 0:00:30]} f6 {[%emt 0:00:00]} 12. O-O {[%emt 0:11:30]} Bd7 {[%emt 0:04:00]} 13. Bxc6 {[%emt 0:13:30]} Bxc6 {[%emt 0:01:30]} 14. a4 {[%emt 0:00:30]} Ba5 {[%emt 0:04:30]} 15. Ba3 {[%emt 0:00:30]} Re8 {[%emt 0:02:30]} 16. Bb4 {[%emt 0:00:30]} Bxb4 {[%emt 0:00:00]} 17. cxb4 {[%emt 0:03:30]} Bd7 {[%emt 0:01:00]} 18. Qd3 {[%emt 0:01:30]} Rf8 {[%emt 0:01:30]} 19. Rfe1 {[%emt 0:03:30]} Qe7 {[%emt 0:04:30]} 20. Qb3 {[%emt 0:06:30]} Be6 {[%emt 0:01:30]} 21. Re3 {[%emt 0:01:30]} fxe5 {[%emt 0:06:30]} 22. Nxe5 {[%emt 0:00:30]} Qh4 {[%emt 0:03:30]} 23. Nf3 {[%emt 0:04:30]} Qf6 {[%emt 0:00:30]} 24. Rae1 {[%emt 0:00:30]} Rae8 {[%emt 0:00:00]} 25. R1e2 {[%emt 0:04:30]} c6 {[%emt 0:05:00]} 26. Ne5 {[%emt 0:05:30]} Bf5 {[%emt 0:08:30]} 27. b5 {[%emt 0:05:30]} Rb8 {[%emt 0:12:30]} 28. g4 {[%emt 0:09:30]} Be6 {[%emt 0:08:06]} 29. Nxc6 {[%emt 0:02:30]} bxc6 {[%emt 0:00:30]} 30. Rxe6 {[%emt 0:00:30]} Qxd4 {[%emt 0:00:30]} 31. Rxc6 {[%emt 0:00:00]} Rbe8 {[%emt 0:01:14]} 32. Qc2 {[%emt 0:05:04]} Rxe2 {[%emt 0:06:26]} 33. Qxe2 {[%emt 0:00:01]} Qxa4 {[%emt 0:00:35]} 34. Qe6+ {[%emt 0:00:30]} Kh8 {[%emt 0:00:00]} 35. Rc8 {[%emt 0:00:30]} Qd1+ {[%emt 0:00:09]} 36. Kh2 {[%emt 0:00:30]} Qf3 {[%emt 0:00:40]} 37. Rxf8+ {[%emt 0:01:06]} Qxf8 {[%emt 0:00:08]} 38. Qxd5 {[%emt 0:01:01]} Qxf2+ {[%emt 0:00:06]} 39. Qg2 {[%emt 0:02:15]} Qxg2+ {[%emt 0:01:07]} 40. Kxg2 {[%emt 0:00:30]} Kg8 {[%emt 0:00:30]} 41. Kf3 {[%emt 0:00:30]} Kf7 {[%emt 0:00:30]} 42. Ke4 {[%emt 0:00:30]} Ke6 {[%emt 0:00:00]} 43. h4 {[%emt 0:00:00]} Kd6 {[%emt 0:01:35]} 44. Kd4 {[%emt 0:00:35]} Kc7 {[%emt 0:00:13]} 45. h5 {[%emt 0:00:28]} Kd6 {[%emt 0:02:06]} 46. g5 {[%emt 0:00:17]} g6 {[%emt 0:00:39]} 47. h6 {[%emt 0:00:59]} Kc7 {[%emt 0:01:24]} 48. Kc5 {[%emt 0:00:29]} Kd7 {[%emt 0:01:10]} 49. Kd5 {[%emt 0:00:30]} Kc7 {[%emt 0:00:00]} 50. Ke6 {[%emt 0:00:37]} Kd8 {[%emt 0:00:13]} 51. Kd6 {[%emt 0:00:11]} Kc8 {[%emt 0:00:08]} 52. Kc6 {[%emt 0:00:47]} Kb8 {[%emt 0:00:00]} 1/2-1/2

[Event "FIDE World Cadets GU12 2022"]
[Site "Batumi"]
[Date "2022.09.21"]
[Round "6.16"]
[White "Kiss, Inez"]
[Black "Silva, Juliana Figueira The"]
[Result "1-0"]
[ECO "B94"]
[WhiteElo "1544"]
[BlackElo "1328"]
[Annotator "NA RC COMBH"]
[PlyCount "59"]
[EventDate "2022.09.16"]
[EventType "swiss"]
[EventCountry "GEO"]
[SourceTitle "playchess.com"]
[Source "ChessBase"]
[SourceQuality "1"]
[TimeControl "5400+30"]

1. e4 {[%emt 0:01:00]} c5 {[%emt 0:01:00]} 2. Nf3 {[%emt 0:00:30]} d6 {[%emt 0:00:30]} 3. d4 {[%emt 0:00:00]} cxd4 {[%emt 0:01:30]} 4. Nxd4 {[%emt 0:00:00]} Nf6 {[%emt 0:00:30]} 5. Nc3 {[%emt 0:00:00]} a6 {[%emt 0:01:30]} 6. Bg5 {[%emt 0:00:00]} Nbd7 {[%emt 0:01:30]} 7. Bc4 {[%emt 0:01:30]} Qc7 {[%emt 0:02:30]} 8. Bb3 {[%emt 0:02:30]} b5 {[%emt 0:05:30]} 9. a3 {[%emt 0:06:30]} e6 {[%emt 0:01:30]} 10. f4 {[%emt 0:03:30]} Bb7 {[%emt 0:05:30]} 11. Qe2 {[%emt 0:05:30]} Be7 {[%emt 0:04:30]} 12. f5 {[%emt 0:07:30]} e5 {[%emt 0:03:30]} 13. Nf3 {[%emt 0:03:30]} h6 {[%emt 0:05:30]} 14. Bxf6 {[%emt 0:05:30]} Nxf6 {[%emt 0:00:00]} 15. O-O-O {[%emt 0:01:30]} Bc6 {[%emt 0:04:00]} 16. h3 {[%emt 0:03:30]} Qb7 {[%emt 0:01:30]} 17. Nd5 {[%emt 0:01:30]} Nxd5 {[%emt 0:05:30]} 18. Bxd5 {[%emt 0:00:30]} Bxd5 {[%emt 0:00:00]} 19. Rxd5 {[%emt 0:00:30]} b4 {[%emt 0:02:00]} 20. Qc4 {[%emt 0:06:30]} bxa3 {[%emt 0:01:30]} 21. Qa4+ {[%emt 0:00:30]} Qd7 {[%emt 0:07:30]} 22. Qxa3 {[%emt 0:01:30]} f6 {[%emt 0:01:30]} 23. Nh4 {[%emt 0:01:30]} O-O {[%emt 0:00:30]} 24. Ng6 {[%emt 0:00:30]} Rfd8 {[%emt 0:00:30]} 25. Rhd1 {[%emt 0:00:30]} Kf7 {[%emt 0:02:30]} 26. Qb3 {[%emt 0:02:30]} Rab8 {[%emt 0:02:30]} 27. Rb5+ {[%emt 0:00:30]} d5 {[%emt 0:00:30]} 28. Rxb8 {[%emt 0:00:30]} Rxb8 {[%emt 0:00:30]} 29. Qxb8 {[%emt 0:00:30]} Qa4 {[%emt 0:01:30]} 30. Nh8# {[%emt 0:00:30]} 1-0

[Event "FIDE World Cadets GU12 2022"]
[Site "Batumi"]
[Date "2022.09.21"]
[Round "6.17"]
[White "Derlich, Sarah Sima"]
[Black "Rathnayake, R M Dulinma Hemalni"]
[Result "0-1"]
[ECO "B52"]
[WhiteElo "1490"]
[BlackElo "1321"]
[Annotator "NA RC COMBH"]
[PlyCount "86"]
[EventDate "2022.09.16"]
[EventType "swiss"]
[EventCountry "GEO"]
[SourceTitle "playchess.com"]
[Source "ChessBase"]
[SourceQuality "1"]
[TimeControl "5400+30"]

1. e4 {[%emt 0:01:00]} c5 {[%emt 0:01:00]} 2. Nf3 {[%emt 0:00:30]} d6 {[%emt 0:00:30]} 3. Bb5+ {[%emt 0:00:00]} Bd7 {[%emt 0:00:30]} 4. Bxd7+ {[%emt 0:00:00]} Qxd7 {[%emt 0:00:00]} 5. c4 {[%emt 0:02:30]} Qg4 {[%emt 0:06:00]} 6. O-O {[%emt 0:00:30]} Nc6 {[%emt 0:06:30]} 7. Nc3 {[%emt 0:02:30]} g6 {[%emt 0:01:30]} 8. d4 {[%emt 0:07:30]} cxd4 {[%emt 0:00:30]} 9. Nxd4 {[%emt 0:00:30]} Qxd1 {[%emt 0:00:30]} 10. Rxd1 {[%emt 0:00:30]} Nxd4 {[%emt 0:00:30]} 11. Rxd4 {[%emt 0:00:00]} Rc8 {[%emt 0:00:00]} 12. b3 {[%emt 0:06:00]} Bg7 {[%emt 0:00:00]} 13. Rd3 {[%emt 0:02:30]} b5 {[%emt 0:00:30]} 14. cxb5 {[%emt 0:12:30]} Rxc3 {[%emt 0:02:30]} 15. Bb2 {[%emt 0:00:30]} Rxd3 {[%emt 0:00:30]} 16. Bxg7 {[%emt 0:00:00]} f6 {[%emt 0:01:30]} 17. Bxh8 {[%emt 0:06:00]} Rc3 {[%emt 0:00:30]} 18. f4 {[%emt 0:07:30]} Kf7 {[%emt 0:04:30]} 19. Rd1 {[%emt 0:03:30]} Nh6 {[%emt 0:00:30]} 20. e5 {[%emt 0:01:30]} Rc8 {[%emt 0:01:30]} 21. exd6 {[%emt 0:00:30]} Rxh8 {[%emt 0:00:00]} 22. dxe7 {[%emt 0:00:30]} Kxe7 {[%emt 0:00:00]} 23. Rd4 {[%emt 0:03:30]} Rd8 {[%emt 0:00:30]} 24. Rxd8 {[%emt 0:02:30]} Kxd8 {[%emt 0:00:30]} 25. a4 {[%emt 0:00:30]} Kc7 {[%emt 0:00:30]} 26. a5 {[%emt 0:00:30]} Nf5 {[%emt 0:00:00]} 27. Kf2 {[%emt 0:01:30]} Nd4 {[%emt 0:00:00]} 28. Ke3 {[%emt 0:01:30]} Nxb3 {[%emt 0:00:00]} 29. g4 {[%emt 0:04:30]} Nxa5 {[%emt 0:00:00]} 30. Ke4 {[%emt 0:00:30]} Kd6 {[%emt 0:00:30]} 31. h4 {[%emt 0:05:30]} Nc4 {[%emt 0:00:30]} 32. f5 {[%emt 0:07:30]} gxf5+ {[%emt 0:01:30]} 33. Kxf5 {[%emt 0:00:30]} Ke7 {[%emt 0:00:00]} 34. Ke4 {[%emt 0:09:02]} Nd6+ {[%emt 0:03:00]} 35. Kd5 {[%emt 0:00:30]} Nxb5 {[%emt 0:00:30]} 36. Kc6 {[%emt 0:01:12]} Nd4+ {[%emt 0:00:30]} 37. Kd5 {[%emt 0:00:34]} Nf3 {[%emt 0:00:30]} 38. h5 {[%emt 0:00:30]} Ne5 {[%emt 0:00:00]} 39. g5 {[%emt 0:00:56]} a5 {[%emt 0:00:00]} 40. gxf6+ {[%emt 0:00:49]} Kxf6 {[%emt 0:00:30]} 41. Kc5 {[%emt 0:01:12]} Kg5 {[%emt 0:00:30]} 42. Kb5 {[%emt 0:00:30]} Nc6 {[%emt 0:00:00]} 43. h6 {[%emt 0:00:08]} Kxh6 0-1

[Event "FIDE World Cadets GU12 2022"]
[Site "Batumi"]
[Date "2022.09.21"]
[Round "6.18"]
[White "Belaya, Liliya"]
[Black "Hariharan, Shambavi"]
[Result "0-1"]
[ECO "B18"]
[WhiteElo "1266"]
[BlackElo "1465"]
[Annotator "NA RC COMBH"]
[PlyCount "104"]
[EventDate "2022.09.16"]
[EventType "swiss"]
[EventCountry "GEO"]
[SourceTitle "playchess.com"]
[Source "ChessBase"]
[SourceQuality "1"]
[TimeControl "5400+30"]

1. e4 {[%emt 0:01:00]} c6 {[%emt 0:01:00]} 2. d4 {[%emt 0:00:30]} d5 {[%emt 0:00:30]} 3. Nc3 {[%emt 0:00:30]} dxe4 {[%emt 0:00:30]} 4. Nxe4 {[%emt 0:00:30]} Bf5 {[%emt 0:00:30]} 5. Ng3 {[%emt 0:00:30]} Bg6 {[%emt 0:00:30]} 6. Nf3 {[%emt 0:00:00]} Nd7 {[%emt 0:00:00]} 7. Bd3 {[%emt 0:00:00]} e6 {[%emt 0:00:00]} 8. O-O {[%emt 0:00:00]} Ngf6 {[%emt 0:00:30]} 9. Re1 {[%emt 0:00:00]} Bd6 {[%emt 0:00:30]} 10. Nf5 {[%emt 0:00:00]} Bxf5 {[%emt 0:00:30]} 11. Bxf5 {[%emt 0:00:00]} O-O {[%emt 0:00:30]} 12. Bd3 {[%emt 0:00:00]} c5 {[%emt 0:08:30]} 13. c3 {[%emt 0:01:00]} Qc7 {[%emt 0:01:30]} 14. h3 {[%emt 0:00:30]} Rfe8 {[%emt 0:02:30]} 15. Bd2 {[%emt 0:12:30]} Rad8 {[%emt 0:04:30]} 16. Rc1 {[%emt 0:01:30]} Qb6 {[%emt 0:01:30]} 17. Qc2 {[%emt 0:00:30]} Qc7 {[%emt 0:08:30]} 18. b3 {[%emt 0:13:30]} a6 {[%emt 0:00:30]} 19. a4 {[%emt 0:00:00]} Rc8 {[%emt 0:04:30]} 20. Qb1 {[%emt 0:05:00]} Qb6 {[%emt 0:05:30]} 21. Ng5 {[%emt 0:03:30]} g6 {[%emt 0:03:30]} 22. Nf3 {[%emt 0:08:30]} cxd4 {[%emt 0:02:30]} 23. cxd4 {[%emt 0:02:30]} Nd5 {[%emt 0:01:30]} 24. Bc4 {[%emt 0:01:30]} N7f6 {[%emt 0:01:30]} 25. Re2 {[%emt 0:09:30]} Qa7 {[%emt 0:04:30]} 26. Rce1 {[%emt 0:01:30]} Qb8 {[%emt 0:02:30]} 27. Ng5 {[%emt 0:00:30]} b5 {[%emt 0:04:30]} 28. axb5 {[%emt 0:01:30]} axb5 {[%emt 0:00:30]} 29. Bd3 {[%emt 0:01:30]} Bf4 {[%emt 0:01:30]} 30. Ne4 {[%emt 0:04:30]} Nxe4 {[%emt 0:02:30]} 31. Bxe4 {[%emt 0:00:30]} Bxd2 {[%emt 0:00:30]} 32. Rxd2 {[%emt 0:00:00]} Qf4 {[%emt 0:01:30]} 33. Rc2 {[%emt 0:03:00]} Nc3 {[%emt 0:02:30]} 34. Rxc3 {[%emt 0:09:30]} Rxc3 {[%emt 0:00:00]} 35. g3 {[%emt 0:10:07]} Qf6 {[%emt 0:01:00]} 36. Qd1 {[%emt 0:01:18]} Rd8 {[%emt 0:01:30]} 37. d5 {[%emt 0:02:04]} exd5 {[%emt 0:00:30]} 38. Bxd5 {[%emt 0:03:30]} Kg7 {[%emt 0:00:30]} 39. Re4 {[%emt 0:00:51]} Qg5 {[%emt 0:03:30]} 40. Qd4+ {[%emt 0:03:17]} Qf6 {[%emt 0:00:30]} 41. Qd2 {[%emt 0:00:00]} Rc5 {[%emt 0:01:30]} 42. Rd4 {[%emt 0:03:26]} Qd6 {[%emt 0:01:30]} 43. Qb2 {[%emt 0:00:44]} f6 {[%emt 0:01:30]} 44. Qe2 {[%emt 0:01:11]} Rxd5 {[%emt 0:01:30]} 45. Rxd5 {[%emt 0:00:30]} Qxd5 {[%emt 0:00:30]} 46. Qe7+ {[%emt 0:00:00]} Kg8 {[%emt 0:00:30]} 47. Qxf6 {[%emt 0:00:25]} Rf8 {[%emt 0:00:30]} 48. Qc3 {[%emt 0:00:01]} Qf3 {[%emt 0:00:30]} 49. Qc2 {[%emt 0:00:35]} Rd8 {[%emt 0:00:30]} 50. Kh2 {[%emt 0:00:09]} Rd1 {[%emt 0:01:30]} 51. Qc8+ {[%emt 0:00:30]} Kg7 {[%emt 0:00:30]} 52. Qc7+ {[%emt 0:00:00]} Kh6 {[%emt 0:00:30]} 0-1

[Event "FIDE World Cadets GU12 2022"]
[Site "Batumi"]
[Date "2022.09.21"]
[Round "6.19"]
[White "Vlasova, Mariya N"]
[Black "Valiyeva, Asnad"]
[Result "1/2-1/2"]
[ECO "A07"]
[WhiteElo "1456"]
[BlackElo "1265"]
[Annotator "NA RC COMBH"]
[PlyCount "128"]
[EventDate "2022.09.16"]
[EventType "swiss"]
[EventCountry "GEO"]
[SourceTitle "playchess.com"]
[Source "ChessBase"]
[SourceQuality "1"]
[TimeControl "5400+30"]

1. Nf3 {[%emt 0:01:00]} d5 {[%emt 0:01:00]} 2. g3 {[%emt 0:00:30]} Nf6 {[%emt 0:00:30]} 3. Bg2 {[%emt 0:00:00]} Bf5 {[%emt 0:00:30]} 4. O-O {[%emt 0:00:00]} e6 {[%emt 0:00:30]} 5. d3 {[%emt 0:00:00]} Be7 {[%emt 0:00:30]} 6. Nbd2 {[%emt 0:00:00]} h6 {[%emt 0:01:30]} 7. b3 {[%emt 0:00:00]} O-O {[%emt 0:01:30]} 8. Bb2 {[%emt 0:00:00]} Nbd7 {[%emt 0:01:30]} 9. Qe1 {[%emt 0:00:30]} c6 {[%emt 0:07:30]} 10. e4 {[%emt 0:00:00]} Bh7 {[%emt 0:00:30]} 11. e5 {[%emt 0:01:00]} Ne8 {[%emt 0:00:30]} 12. Nd4 {[%emt 0:01:30]} Nc7 {[%emt 0:06:30]} 13. f4 {[%emt 0:00:30]} Nc5 {[%emt 0:07:30]} 14. f5 {[%emt 0:03:30]} exf5 {[%emt 0:02:30]} 15. Nxf5 {[%emt 0:00:00]} Bxf5 {[%emt 0:00:30]} 16. Rxf5 {[%emt 0:00:00]} N5e6 {[%emt 0:03:30]} 17. Kh1 {[%emt 0:07:30]} f6 {[%emt 0:06:30]} 18. Qf2 {[%emt 0:09:30]} fxe5 {[%emt 0:07:30]} 19. Bxe5 {[%emt 0:00:00]} Bc5 {[%emt 0:08:30]} 20. Rxf8+ {[%emt 0:01:00]} Qxf8 {[%emt 0:00:30]} 21. Qxf8+ {[%emt 0:00:30]} Rxf8 {[%emt 0:01:30]} 22. Rf1 {[%emt 0:00:30]} Bd4 {[%emt 0:13:30]} 23. Rxf8+ {[%emt 0:00:30]} Kxf8 {[%emt 0:02:30]} 24. Bd6+ {[%emt 0:00:00]} Ke8 {[%emt 0:00:30]} 25. Nf3 {[%emt 0:01:00]} Bc3 {[%emt 0:04:30]} 26. Bh3 {[%emt 0:06:30]} Nb5 {[%emt 0:02:13]} 27. Bb8 {[%emt 0:02:30]} Nd8 {[%emt 0:00:17]} 28. a4 {[%emt 0:01:30]} Na3 {[%emt 0:00:09]} 29. Bxa7 {[%emt 0:00:30]} Nxc2 {[%emt 0:00:21]} 30. Bc5 {[%emt 0:02:30]} Bb4 {[%emt 0:00:48]} 31. Bxb4 {[%emt 0:01:30]} Nxb4 {[%emt 0:00:30]} 32. Bf5 {[%emt 0:00:30]} Ke7 {[%emt 0:00:22]} 33. d4 {[%emt 0:00:30]} Kd6 {[%emt 0:00:20]} 34. Kg2 {[%emt 0:02:30]} b6 {[%emt 0:00:30]} 35. Kf2 {[%emt 0:00:30]} Nb7 {[%emt 0:00:30]} 36. Ke3 {[%emt 0:00:30]} Na5 {[%emt 0:00:00]} 37. Kd2 {[%emt 0:01:30]} c5 {[%emt 0:01:00]} 38. Kc3 {[%emt 0:00:30]} Nbc6 {[%emt 0:00:30]} 39. Bc2 {[%emt 0:00:30]} Nxd4 {[%emt 0:00:30]} 40. Nxd4 {[%emt 0:00:30]} cxd4+ {[%emt 0:00:30]} 41. Kxd4 {[%emt 0:00:30]} Nc6+ {[%emt 0:00:30]} 42. Kc3 {[%emt 0:01:30]} Kc5 {[%emt 0:00:00]} 43. Bd3 {[%emt 0:03:30]} d4+ {[%emt 0:01:00]} 44. Kb2 {[%emt 0:04:30]} Kb4 {[%emt 0:00:46]} 45. Be2 {[%emt 0:02:30]} Na5 {[%emt 0:00:30]} 46. Bd1 {[%emt 0:00:30]} d3 {[%emt 0:00:30]} 47. h3 {[%emt 0:00:30]} Nc6 {[%emt 0:02:43]} 48. Bh5 {[%emt 0:23:30]} d2 {[%emt 0:01:39]} 49. Kc2 {[%emt 0:00:30]} Nd4+ {[%emt 0:00:30]} 50. Kxd2 {[%emt 0:00:30]} Nxb3+ {[%emt 0:00:00]} 51. Ke3 {[%emt 0:00:30]} Kxa4 {[%emt 0:00:25]} 52. Ke4 {[%emt 0:00:30]} Nc5+ {[%emt 0:00:42]} 53. Kf5 {[%emt 0:00:30]} b5 {[%emt 0:00:00]} 54. Be8 {[%emt 0:02:30]} Ka5 {[%emt 0:00:15]} 55. Kg6 {[%emt 0:00:30]} Ne4 {[%emt 0:00:26]} 56. g4 {[%emt 0:00:30]} Nf2 {[%emt 0:00:02]} 57. Kxg7 {[%emt 0:01:30]} Nxh3 {[%emt 0:00:30]} 58. Kxh6 {[%emt 0:00:30]} b4 {[%emt 0:00:00]} 59. Kh5 {[%emt 0:00:30]} b3 {[%emt 0:00:00]} 60. Bf7 {[%emt 0:02:30]} Kb4 {[%emt 0:00:42]} 61. Kh4 {[%emt 0:00:30]} Nf4 {[%emt 0:01:19]} 62. Kg3 {[%emt 0:00:30]} Nd3 {[%emt 0:00:16]} 63. g5 {[%emt 0:00:30]} Ne5 {[%emt 0:00:30]} 64. Bd5 {[%emt 0:00:30]} b2 {[%emt 0:00:01]} 1/2-1/2

[Event "FIDE World Cadets GU12 2022"]
[Site "Batumi"]
[Date "2022.09.25"]
[Round "9.1"]
[White "Mgeladze, Kesaria"]
[Black "Shubhi Gupta"]
[Result "0-1"]
[ECO "C45"]
[WhiteElo "1771"]
[BlackElo "1733"]
[Annotator "NA RC COMBH"]
[PlyCount "78"]
[EventDate "2022.09.16"]
[EventType "swiss"]
[EventCountry "GEO"]
[SourceTitle "playchess.com"]
[Source "ChessBase"]
[SourceQuality "1"]
[TimeControl "5400+30"]

1. e4 e5 2. Nf3 Nc6 3. d4 exd4 4. Nxd4 Bc5 5. Nb3 Bb6 6. Qe2 d6 7. Be3 Nf6 8. Nc3 O-O 9. O-O-O Re8 10. f3 Ne5 11. Qd2 Bxe3 12. Qxe3 a5 13. a3 Qe7 14. h3 c6 15. g4 b5 16. g5 Nfd7 17. f4 b4 18. Nb1 Ng6 19. Bd3 c5 20. Qg3 Nb6 21. N3d2 Ba6 22. Bxa6 Rxa6 23. h4 c4 24. h5 Nf8 25. c3 {[%emt 1:25:43]} Ne6 {[%emt 1:11:00]} 26. axb4 {[%emt 0:06:22]} axb4 {[%emt 0:00:30]} 27. cxb4 {[%emt 0:00:07]} Qa7 {[%emt 0:12:48]} 28. h6 {[%emt 0:03:03]} Nd4 {[%emt 0:01:47]} 29. Rh2 {[%emt 0:04:08]} Ra1 {[%emt 0:05:35]} 30. hxg7 {[%emt 0:01:59]} c3 {[%emt 0:02:44]} 31. Qh3 {[%emt 0:03:38]} cxd2+ {[%emt 0:02:25]} 32. Kxd2 {[%emt 0:00:35]} Nc4+ {[%emt 0:00:38]} 33. Kc1 {[%emt 0:00:46]} Ne2+ {[%emt 0:02:46]} 34. Rxe2 {[%emt 0:00:30]} Qa2 {[%emt 0:00:22]} 35. Qd3 {[%emt 0:00:21]} Rc8 {[%emt 0:00:26]} 36. Qc2 {[%emt 0:00:39]} Rxb1+ {[%emt 0:00:30]} 37. Qxb1 {[%emt 0:00:30]} Na3+ {[%emt 0:00:00]} 38. Qc2 {[%emt 0:00:18]} Rxc2+ {[%emt 0:00:28]} 39. Rxc2 {[%emt 0:00:30]} Qb1+ {[%emt 0:00:00]} 0-1

[Event "FIDE World Cadets GU12 2022"]
[Site "Batumi"]
[Date "2022.09.25"]
[Round "9.2"]
[White "Yousefian, Maedeh"]
[Black "Goriachkina, Oksana"]
[Result "1/2-1/2"]
[ECO "B15"]
[WhiteElo "1765"]
[BlackElo "1748"]
[Annotator "NA RC COMBH"]
[PlyCount "80"]
[EventDate "2022.09.16"]
[EventType "swiss"]
[EventCountry "GEO"]
[SourceTitle "playchess.com"]
[Source "ChessBase"]
[SourceQuality "1"]
[TimeControl "5400+30"]

1. e4 c6 2. d4 d5 3. Nd2 dxe4 4. Nxe4 Nf6 5. Nxf6+ exf6 6. c3 Be6 7. Bd3 Bd6 8. Qc2 Nd7 9. Ne2 g6 10. O-O Qc7 11. h3 O-O 12. c4 Rfe8 13. c5 Bf8 14. Bf4 Qd8 15. b4 f5 16. b5 Bd5 17. Nc3 Nf6 18. Be5 Bg7 19. Rad1 Ne4 20. Bxg7 Nxc3 21. Qxc3 Qg5 22. f3 Kxg7 23. Bc4 Re3 24. Qc1 {[%emt 1:34:57]} f4 {[%emt 0:59:30]} 25. Bxd5 {[%emt 0:00:30]} Qxd5 {[%emt 0:00:30]} 26. bxc6 {[%emt 0:00:30]} bxc6 {[%emt 0:00:30]} 27. Rd2 {[%emt 0:00:30]} Rae8 {[%emt 0:00:30]} 28. Qb2 {[%emt 0:01:17]} Kg8 {[%emt 0:02:30]} 29. Qc2 {[%emt 0:01:24]} Qe6 {[%emt 0:05:30]} 30. Rdf2 {[%emt 0:01:43]} Rd8 {[%emt 0:03:30]} 31. Rd2 {[%emt 0:02:07]} Re1 {[%emt 0:00:30]} 32. Rd1 {[%emt 0:01:00]} Re2 {[%emt 0:04:30]} 33. Qb3 {[%emt 0:00:05]} Qxb3 {[%emt 0:05:30]} 34. axb3 {[%emt 0:00:30]} Re3 {[%emt 0:00:00]} 35. Rd2 {[%emt 0:02:44]} Rxb3 {[%emt 0:00:00]} 36. Ra1 {[%emt 0:00:00]} Rb5 {[%emt 0:09:56]} 37. Rxa7 {[%emt 0:00:33]} Rxc5 {[%emt 0:00:47]} 38. dxc5 {[%emt 0:00:30]} Rxd2 {[%emt 0:00:30]} 39. Rc7 {[%emt 0:00:00]} Kf8 {[%emt 0:00:00]} 40. Rxc6 {[%emt 0:00:00]} Rc2 {[%emt 0:00:06]} 1/2-1/2

[Event "FIDE World Cadets GU12 2022"]
[Site "Batumi"]
[Date "2022.09.25"]
[Round "9.3"]
[White "Preobrazhenskaya, Diana"]
[Black "Ismayilova, Khanim"]
[Result "1-0"]
[ECO "B33"]
[WhiteElo "1994"]
[BlackElo "1901"]
[Annotator "NA RC"]
[PlyCount "87"]
[EventDate "2022.09.16"]
[EventType "swiss"]
[EventCountry "GEO"]
[SourceTitle "playchess.com"]
[Source "ChessBase"]
[SourceQuality "1"]
[TimeControl "5400+30"]

1. e4 c5 2. Nf3 Nc6 3. d4 cxd4 4. Nxd4 Nf6 5. Nc3 e5 6. Ndb5 d6 7. Bg5 a6 8. Na3 b5 9. Nd5 Be7 10. Bxf6 Bxf6 11. c3 Ne7 12. Nxf6+ gxf6 13. Bd3 Bb7 14. Nc2 d5 15. Qe2 Qb6 16. O-O-O O-O-O 17. exd5 Nxd5 18. Be4 Kb8 19. Qf3 Nf4 20. g3 Bxe4 21. Qxe4 Nh3 22. Rxd8+ Rxd8 23. Qe3 {[%emt 1:32:06]} Qxe3+ {[%emt 1:03:00]} 24. fxe3 {[%emt 0:00:30]} Nf2 {[%emt 0:00:30]} 25. Rf1 {[%emt 0:00:26]} Ne4 {[%emt 0:07:30]} 26. Rd1 {[%emt 0:01:03]} Rxd1+ {[%emt 0:00:30]} 27. Kxd1 {[%emt 0:00:30]} Kb7 {[%emt 0:01:30]} 28. Ke2 {[%emt 0:01:49]} h5 {[%emt 0:10:30]} 29. Nb4 {[%emt 0:01:31]} a5 {[%emt 0:04:57]} 30. Nd5 {[%emt 0:01:03]} a4 {[%emt 0:00:52]} 31. Kd3 {[%emt 0:01:55]} Nc5+ {[%emt 0:03:18]} 32. Kc2 {[%emt 0:00:21]} Ne4 {[%emt 0:02:21]} 33. Ne7 {[%emt 0:01:13]} Ng5 {[%emt 0:02:04]} 34. Nf5 {[%emt 0:01:01]} Nf3 {[%emt 0:02:27]} 35. h4 {[%emt 0:00:49]} Kc6 {[%emt 0:01:47]} 36. e4 {[%emt 0:01:05]} Nh2 {[%emt 0:03:41]} 37. Ng7 {[%emt 0:00:30]} Ng4 {[%emt 0:00:30]} 38. Nxh5 {[%emt 0:00:56]} f5 {[%emt 0:02:36]} 39. exf5 {[%emt 0:00:30]} Kd5 {[%emt 0:00:00]} 40. Kd3 {[%emt 0:02:01]} e4+ {[%emt 0:01:08]} 41. Ke2 {[%emt 0:00:30]} Ke5 {[%emt 0:00:30]} 42. f6 {[%emt 0:00:05]} Nh6 {[%emt 0:00:55]} 43. b3 {[%emt 0:01:49]} Nf5 {[%emt 0:00:38]} 44. Ng7 {[%emt 0:00:10]} 1-0

[Event "FIDE World Cadets GU12 2022"]
[Site "Batumi"]
[Date "2022.09.25"]
[Round "9.4"]
[White "Beber, Anja"]
[Black "Abramkina, Veranika"]
[Result "0-1"]
[ECO "D00"]
[WhiteElo "1674"]
[BlackElo "1445"]
[Annotator "NA RC COMBH"]
[PlyCount "96"]
[EventDate "2022.09.16"]
[EventType "swiss"]
[EventCountry "GEO"]
[SourceTitle "playchess.com"]
[Source "ChessBase"]
[SourceQuality "1"]
[TimeControl "5400+30"]

1. d4 Nf6 2. Nc3 d5 3. Bf4 g6 4. e3 Bg7 5. h4 h5 6. Nf3 O-O 7. Ne5 c5 8. Be2 Nbd7 9. f3 cxd4 10. exd4 Qb6 11. Rb1 e6 12. Qd2 Nxe5 13. Bxe5 Ne8 14. Bxg7 Nxg7 15. g4 Re8 16. gxh5 Nxh5 17. f4 Ng3 18. Rg1 Nf5 19. Rd1 Nxh4 20. Rh1 Qd8 21. Kf2 Kg7 22. Rdg1 Bd7 23. Bd3 Qf6 24. Ne2 Rh8 25. c3 Rh7 26. Ng3 Rah8 27. Be2 Kf8 28. Bd3 Nf5 29. Bxf5 Rxh1 30. Rxh1 Rxh1 31. Nxh1 Qxf5 32. Ng3 {[%emt 1:14:30]} Qh3 {[%emt 1:21:30]} 33. Qc1 {[%emt 0:00:30]} Qh2+ {[%emt 0:00:30]} 34. Kf3 {[%emt 0:00:30]} Bb5 {[%emt 0:00:30]} 35. a3 {[%emt 0:10:30]} a5 {[%emt 0:02:30]} 36. a4 {[%emt 0:05:54]} Bxa4 {[%emt 0:01:30]} 37. b3 {[%emt 0:00:10]} Bb5 {[%emt 0:02:30]} 38. Qa3+ {[%emt 0:00:30]} Kg7 {[%emt 0:00:30]} 39. Qxa5 {[%emt 0:00:00]} Bd3 {[%emt 0:01:00]} 40. Qc7 {[%emt 0:00:20]} Bc2 {[%emt 0:04:30]} 41. Qe5+ {[%emt 0:04:28]} Kh7 {[%emt 0:00:30]} 42. Qe1 {[%emt 0:00:12]} Bxb3 {[%emt 0:00:09]} 43. Qh1 {[%emt 0:01:30]} Qxh1+ {[%emt 0:00:30]} 44. Nxh1 {[%emt 0:00:00]} f6 {[%emt 0:01:38]} 45. Nf2 {[%emt 0:00:55]} Bc2 {[%emt 0:00:28]} 46. Ng4 {[%emt 0:00:17]} Bd1+ {[%emt 0:00:30]} 47. Kg3 {[%emt 0:00:30]} Bxg4 {[%emt 0:00:30]} 48. Kxg4 {[%emt 0:00:00]} Kh6 {[%emt 0:00:00]} 0-1